lending/lending_fUSD_20240504
["ID","MTS","AMOUNT","RATE_DAILY","PERIOD"]
[325410340,1714854672749,-500.0,0.00041095,30]
[325410341,1714854672759,-500.0,0.00041095,30]
[325410342,1714854672768,-4294.82,0.00041095,30]
[325410343,1714854672778,-3940.42,0.00041095,30]
[325410344,1714854672788,-500.0,0.00041095,30]
[325410345,1714854672797,-500.0,0.00041095,30]
[325410346,1714854672807,-500.0,0.00041095,30]
[325410347,1714854672816,-50317.3,0.00041095,30]
[325410348,1714854672826,-500.0,0.00041095,30]
[325410349,1714854672836,-500.0,0.00041095,30]
[325410350,1714854672846,-1383.82,0.00041095,30]
[325410351,1714854672856,-3024.33,0.00041095,30]
[325410352,1714854672866,-2478.45,0.00041095,30]
[325410353,1714854672876,-1059.52,0.00041095,30]
[325410354,1714854672885,-500.0,0.00041095,30]
[325410355,1714854672895,-683.9,0.00041095,30]
[325410356,1714854672905,-267.67219255,0.00041095,30]
[325410357,1714854672915,-3404.53,0.00041095,30]
[325410358,1714854672925,-854.16,0.00041095,30]
[325410359,1714854672934,-500.0,0.00041095,30]
[325410360,1714854672944,-5633.59,0.00041095,30]
[325410361,1714854672955,-500.0,0.00041095,30]
[325410362,1714854672964,-500.0,0.00041095,30]
[325410363,1714854672974,-500.0,0.00041095,30]
[325410364,1714854672984,-1875.17,0.00041095,30]
[325410365,1714854672994,-500.0,0.00041095,30]
[325410366,1714854673004,-500.0,0.00041095,30]
[325410367,1714854673014,-2315.28,0.00041095,30]
[325410368,1714854673024,-500.0,0.00041095,30]
[325410369,1714854673034,-500.0,0.00041095,30]
[325410370,1714854673044,-151.0,0.00041095,14]
[325410371,1714854673054,-3117.97,0.00041095,30]
[325410372,1714854673064,-500.0,0.00041095,30]
[325410373,1714854673075,-151.0,0.00041095,14]
[325410374,1714854673085,-500.0,0.00041095,30]
[325410375,1714854673095,-500.0,0.00041095,30]
[325410376,1714854673105,-500.0,0.00041095,30]
[325410377,1714854673116,-500.0,0.00041095,30]
[325410378,1714854673127,-1320.17,0.00041095,30]
[325410379,1714854673138,-151.0,0.00041095,14]
[325410380,1714854673148,-151.0,0.00041095,14]
[325410381,1714854673158,-500.0,0.00041095,30]
[325410382,1714854673167,-2383.91,0.00041095,30]
[325410383,1714854673177,-501.49415691,0.00041095,30]
[325410384,1714854673187,-500.0,0.00041095,30]
[325410385,1714854673197,-500.0,0.00041095,30]
[325410386,1714854673206,-1179.72,0.00041095,30]
[325410387,1714854673216,-1002.13,0.00041095,30]
[325410388,1714854673226,-1991.85,0.00041095,30]
[325410389,1714854673237,-1619.97,0.00041095,30]
[325410390,1714854673246,-501.08682452,0.00041095,30]
[325410391,1714854673258,-2298.91,0.00041095,30]
[325410392,1714854673269,-500.0,0.00041095,30]
[325410393,1714854673279,-1112.92,0.00041095,30]
[325410394,1714854673289,-500.0,0.00041095,30]
[325410395,1714854673303,-4510.3,0.00041095,30]
[325410396,1714854673313,-2423.67,0.00041095,30]
[325410397,1714854673324,-2508.06,0.00041095,30]
[325410398,1714854673334,-287.36737327,0.00041095,30]
[325410399,1714854673344,-500.0,0.00041095,30]
[325410400,1714854673356,-17530.32,0.00041095,30]
[325410401,1714854673366,-350.930088,0.00041095,14]
[325410402,1714854673377,-747.19,0.00041095,30]
[325410403,1714854673388,-1184.39,0.00041095,30]
[325410404,1714854673399,-350.930088,0.00041095,14]
[325410405,1714854673411,-500.0,0.00041095,30]
[325410406,1714854673421,-500.0,0.00041095,30]
[325410407,1714854673436,-500.0,0.00041095,30]
[325410408,1714854673448,-2432.29,0.00041095,30]
[325410409,1714854673459,-1524.22,0.00041095,30]
[325410410,1714854673470,-3206.71,0.00041095,30]
[325410411,1714854673480,-151.0,0.00041095,14]
[325410412,1714854673491,-151.0,0.00041095,14]
[325410413,1714854673501,-500.0,0.00041095,30]
[325410414,1714854673514,-500.0,0.00041095,30]
[325410415,1714854673527,-11352.36,0.00041095,30]
[325410416,1714854673537,-350.930088,0.00041095,14]
[325410417,1714854673547,-350.930088,0.00041095,14]
[325410418,1714854673559,-500.0,0.00041095,30]
[325410419,1714854673571,-500.0,0.00041095,30]
[325410420,1714854673583,-500.0,0.00041095,30]
[325410421,1714854673594,-500.0,0.00041095,30]
[325410422,1714854673603,-779.45,0.00041095,30]
[325410423,1714854673614,-5184.78,0.00041095,30]
[325410424,1714854673624,-3698.96,0.00041095,30]
[325410425,1714854673634,-500.0,0.00041095,30]
[325410426,1714854673644,-1112.18,0.00041095,30]
[325410427,1714854673655,-1751.47,0.00041095,30]
[325410428,1714854673667,-575.87045926,0.00041095,30]
[325410429,1714854673678,-1272.76,0.00041095,30]
[325410430,1714854673688,-506.47524858,0.00041095,30]
[325410431,1714854673700,-500.0,0.00041095,30]
[325410432,1714854673711,-500.0,0.00041095,30]
[325410433,1714854673722,-500.0,0.00041095,30]
[325410434,1714854673733,-4405.94,0.00041095,30]
[325410435,1714854673744,-2943.5,0.00041095,30]
[325410436,1714854673754,-2244.15,0.00041095,30]
[325410437,1714854673765,-503.8577233,0.00041095,30]
[325410438,1714854673775,-2078.67,0.00041095,30]
[325410439,1714854673787,-9104.24,0.00041095,30]
[325410440,1714854673800,-503.3236715,0.00041095,30]
[325410441,1714854673810,-2091.11,0.00041095,30]
[325410442,1714854673821,-500.0,0.00041095,30]
[325410443,1714854673831,-500.0,0.00041095,30]
[325410444,1714854673843,-4038.48,0.00041095,30]
[325410445,1714854673854,-1519.34,0.00041095,30]
[325410446,1714854673865,-500.0,0.00041095,30]
[325410447,1714854673876,-500.0,0.00041095,30]
[325410448,1714854673886,-1129.03,0.00041095,30]
[325410449,1714854673895,-500.0,0.00041095,30]
[325410450,1714854673906,-602.46411534,0.00041095,30]
[325410451,1714854673916,-1357.49,0.00041095,30]
[325410452,1714854673926,-1052.28,0.00041095,30]
[325410453,1714854673936,-7239.17,0.00041095,30]
[325410454,1714854673947,-611.87547898,0.00041095,30]
[325410455,1714854673958,-2137.01,0.00041095,30]
[325410456,1714854673968,-1037.77,0.00041095,30]
[325410457,1714854673979,-501.83045272,0.00041095,30]
[325410458,1714854673988,-1360.05,0.00041095,30]
[325410459,1714854673999,-250.401572,0.00041095,14]
[325410460,1714854674010,-250.401572,0.00041095,14]
[325410461,1714854674020,-2000.0,0.00041095,120]
[325410462,1714854674031,-2657.36,0.00041095,30]
[325410463,1714854674042,-600.82,0.00041095,30]
[325410464,1714854674052,-1300.32,0.00041095,30]
[325410465,1714854674064,-40205.76,0.00041095,30]
[325410466,1714854674074,-503.27968345,0.00041095,30]
[325410467,1714854674084,-1128.71,0.00041095,30]
[325410468,1714854674094,-500.0,0.00041095,30]
[325410469,1714854674104,-250.401572,0.00041095,14]
[325410470,1714854674116,-250.401572,0.00041095,14]
[325410471,1714854674126,-11475.19,0.00041095,30]
[325410472,1714854674136,-500.0,0.00041095,30]
[325410473,1714854674146,-617.14,0.00041095,30]
[325410474,1714854674157,-1347.18,0.00041095,30]
[325410475,1714854674167,-500.0,0.00041095,30]
[325410476,1714854674178,-1572.1,0.00041095,30]
[325410477,1714854674188,-500.0,0.00041095,30]
[325410478,1714854674198,-1159.8,0.00041095,30]
[325410479,1714854674207,-500.0,0.00041095,30]
[325410480,1714854674218,-3045.34,0.00041095,30]
[325410481,1714854674228,-1151.17,0.00041095,30]
[325410482,1714854674238,-1258.14,0.00041095,30]
[325410483,1714854674248,-500.0,0.00041095,30]
[325410484,1714854674260,-5220.03,0.00041095,21]
[325410485,1714854674270,-500.0,0.00041095,30]
[325410486,1714854674281,-502.69767758,0.00041095,30]
[325410487,1714854674291,-4860.11,0.00041095,30]
[325410488,1714854674301,-1645.92,0.00041095,30]
[325410489,1714854674312,-3915.23,0.00041095,30]
[325410490,1714854674322,-233.81777676,0.00041095,30]
[325410491,1714854674333,-517.53158565,0.00041095,30]
[325410492,1714854674343,-7195.43,0.00041095,30]
[325410493,1714854674352,-761.63,0.00041095,30]
[325410494,1714854674363,-2338.72,0.00041095,30]
[325410495,1714854674374,-1438.67,0.00041095,30]
[325410496,1714854674384,-1495.37,0.00041095,30]
[325410497,1714854674395,-500.0,0.00041095,30]
[325410498,1714854674405,-691.39,0.00041095,30]
[325410499,1714854674415,-360.327809,0.00041095,14]
[325410500,1714854674426,-360.327809,0.00041095,14]
[325410501,1714854674436,-151.0,0.00041095,14]
[325410502,1714854674452,-151.0,0.00041095,14]
[325410503,1714854674463,-331.81343057,0.00041095,30]
[325410504,1714854674473,-360.327809,0.00041095,14]
[325410505,1714854674483,-2856.87,0.00041095,30]
[325410506,1714854674493,-360.327809,0.00041095,14]
[325410507,1714854674503,-567.4,0.00041095,30]
[325410508,1714854674513,-2964.65,0.00041095,30]
[325410509,1714854674526,-500.0,0.00041095,30]
[325410510,1714854674537,-1256.91,0.00041095,30]
[325410511,1714854674547,-6524.62,0.00041095,30]
[325410512,1714854674557,-500.0,0.00041095,30]
[325410513,1714854674566,-641.62,0.00041095,30]
[325410514,1714854674577,-500.0,0.00041095,31]
[325410515,1714854674587,-209.51885211,0.00041095,32]
[325410516,1714854674597,-10413.98,0.00041095,30]
[325410517,1714854674607,-1282.88,0.00041095,30]
[325410518,1714854674619,-500.0,0.00041095,30]
[325410519,1714854674629,-1461.86,0.00041095,30]
[325410520,1714854674639,-575.32,0.00041095,30]
[325410521,1714854674651,-1030.46,0.00041095,30]
[325410522,1714854674662,-575.32,0.00041095,31]
[325410523,1714854674673,-575.32,0.00041095,32]
[325410524,1714854674683,-1508.11,0.00041095,30]
[325410525,1714854674693,-575.32,0.00041095,33]
[325410526,1714854674708,-502.86309111,0.00041095,30]
[325410527,1714854674719,-151.0,0.00041095,14]
[325410528,1714854674729,-575.32,0.00041095,34]
[325410529,1714854674739,-151.0,0.00041095,14]
[325410530,1714854674749,-575.32,0.00041095,35]
[325410531,1714854674759,-500.0,0.00041095,30]
[325410532,1714854674771,-575.32,0.00041095,36]
[325410533,1714854674781,-575.32,0.00041095,37]
[325410534,1714854674793,-575.32,0.00041095,38]
[325410535,1714854674805,-575.32,0.00041095,39]
[325410536,1714854674816,-575.32,0.00041095,40]
[325410537,1714854674829,-501.32391374,0.00041095,30]
[325410538,1714854674841,-575.32,0.00041095,41]
[325410539,1714854674852,-575.32,0.00041095,42]
[325410540,1714854674863,-575.32,0.00041095,43]
[325410541,1714854674874,-575.32,0.00041095,44]
[325410542,1714854674884,-575.32,0.00041095,45]
[325410543,1714854674893,-575.32,0.00041095,46]
[325410544,1714854674903,-575.32,0.00041095,47]
[325410545,1714854675215,-575.32,0.00041095,48]
[325410546,1714854675226,-575.32,0.00041095,49]
[325410547,1714854675236,-500.0,0.00041095,30]
[325410548,1714854675246,-9457.73,0.00041095,30]
[325410549,1714854675255,-1148.25,0.00041095,30]
[325410550,1714854675265,-7662.41,0.00041095,30]
[325410551,1714854675275,-575.32,0.00041095,49]
[325410552,1714854675284,-575.32,0.00041095,49]
[325410553,1714854675295,-575.32,0.00041095,49]
[325410554,1714854675304,-500.0,0.00041095,30]
[325410555,1714854675314,-575.39965247,0.00041095,49]
[325410556,1714854675323,-1927.17,0.00041095,30]
[325410557,1714854675333,-3083.48,0.00041095,30]
[325410558,1714854675342,-1723.14,0.00041095,30]
[325410559,1714854675352,-634.6,0.00041095,30]
[325410560,1714854675362,-500.0,0.00041095,30]
[325410561,1714854675372,-500.0,0.00041095,30]
[325410562,1714854675382,-500.0,0.00041095,30]
[325410563,1714854675391,-6190.34,0.00041095,30]
[325410564,1714854675400,-168.93456364,0.00041095,2]
[325410565,1714854675410,-1062.42,0.00041095,30]
[325410566,1714854675420,-500.0,0.00041095,30]
[325410567,1714854675434,-1595.22,0.00041095,30]
[325410568,1714854675444,-500.0,0.00041095,30]
[325410569,1714854675454,-500.0,0.00041095,30]
[325410570,1714854675463,-405.533453,0.00041095,14]
[325410571,1714854675475,-405.533453,0.00041095,14]
[325410572,1714854675486,-500.0,0.00041095,30]
[325410573,1714854675496,-500.0,0.00041095,30]
[325410574,1714854675507,-500.0,0.00041095,30]
[325410575,1714854675518,-1128.73,0.00041095,30]
[325410576,1714854675529,-405.533453,0.00041095,14]
[325410577,1714854675539,-405.533453,0.00041095,14]
[325410578,1714854675548,-500.0,0.00041095,30]
[325410579,1714854675558,-1856.9,0.00041095,30]
[325410580,1714854675569,-500.0,0.00041095,30]
[325410581,1714854675578,-1271.98,0.00041095,30]
[325410582,1714854675589,-500.0,0.00041095,2]
[325410583,1714854675599,-3713.34,0.00041095,30]
[325410584,1714854675609,-1537.29,0.00041095,30]
[325410585,1714854675620,-2553.74,0.00041095,30]
[325410586,1714854675629,-503.12655892,0.00041095,30]
[325410587,1714854675641,-1288.96,0.00041095,30]
[325410588,1714854675651,-748.24,0.00041095,30]
[325410589,1714854675661,-1288.96,0.00041095,31]
[325410590,1714854675671,-500.0,0.00041095,30]
[325410591,1714854675680,-1288.96,0.00041095,32]
[325410592,1714854675690,-1288.96,0.00041095,33]
[325410593,1714854675700,-1288.96,0.00041095,34]
[325410594,1714854675709,-232.7674475,0.00041095,2]
[325410595,1714854675719,-1281.71,0.00041095,30]
[325410596,1714854675728,-1288.96,0.00041095,35]
[325410597,1714854675737,-684.67,0.00041095,30]
[325410598,1714854675746,-500.0,0.00041095,30]
[325410599,1714854675756,-1288.96,0.00041095,36]
[325410600,1714854675765,-1288.96,0.00041095,37]
[325410601,1714854675775,-11647.8,0.00041095,30]
[325410602,1714854675784,-1288.96,0.00041095,38]
[325410603,1714854675794,-1288.96,0.00041095,39]
[325410604,1714854675804,-1288.96,0.00041095,40]
[325410605,1714854675813,-1288.96,0.00041095,41]
[325410606,1714854675823,-1288.96,0.00041095,42]
[325410607,1714854675834,-1288.96,0.00041095,43]
[325410608,1714854675843,-6899.14,0.00041095,30]
[325410609,1714854675853,-1288.96,0.00041095,44]
[325410610,1714854675863,-1288.96,0.00041095,45]
[325410611,1714854675872,-1288.96,0.00041095,46]
[325410612,1714854675881,-1288.96,0.00041095,47]
[325410613,1714854675891,-1288.96,0.00041095,48]
[325410614,1714854675901,-500.0,0.00041095,30]
[325410615,1714854675911,-1288.96,0.00041095,49]
[325410616,1714854675921,-1288.96,0.00041095,49]
[325410617,1714854675930,-500.0,0.00041095,30]
[325410618,1714854675940,-1288.96,0.00041095,49]
[325410619,1714854675949,-1533.12,0.00041095,30]
[325410620,1714854675959,-500.0,0.00041095,30]
[325410621,1714854675968,-1288.96,0.00041095,49]
[325410622,1714854675978,-1176.64,0.00041095,30]
[325410623,1714854675987,-736.04,0.00041095,30]
[325410624,1714854675996,-1581.86,0.00041095,30]
[325410625,1714854676006,-1103.1,0.00041095,30]
[325410626,1714854676016,-1289.02900388,0.00041095,49]
[325410627,1714854676026,-151.0,0.00041095,14]
[325410628,1714854676035,-500.0,0.00041095,30]
[325410629,1714854676045,-151.0,0.00041095,14]
[325410630,1714854676054,-851.5,0.00041095,30]
[325410631,1714854676064,-2412.04,0.00041095,30]
[325410632,1714854676074,-500.0,0.00041095,30]
[325410633,1714854676083,-504.16785484,0.00041095,30]
[325410634,1714854676092,-501.49032925,0.00041095,30]
[325410635,1714854676102,-501.82266187,0.00041095,30]
[325410636,1714854676111,-1434.7,0.00041095,30]
[325410637,1714854676122,-921.88,0.00041095,30]
[325410638,1714854676131,-500.0,0.00041095,2]
[325410639,1714854676141,-500.0,0.00041095,30]
[325410640,1714854676151,-940.41,0.00041095,30]
[325410641,1714854676161,-500.0,0.00041095,30]
[325410642,1714854676171,-763.52,0.00041095,30]
[325410643,1714854676180,-4578.46,0.00041095,30]
[325410644,1714854676190,-500.0,0.00041095,30]
[325410645,1714854676199,-500.0,0.00041095,30]
[325410646,1714854676208,-500.0,0.00041095,30]
[325410647,1714854676218,-2647.04,0.00041095,30]
[325410648,1714854676227,-500.0,0.00041095,30]
[325410649,1714854676237,-500.0,0.00041095,30]
[325410650,1714854676247,-9937.98,0.00041095,30]
[325410651,1714854676257,-7517.77,0.00041095,30]
[325410652,1714854676266,-500.0,0.00041095,30]
[325410653,1714854676276,-500.0,0.00041095,30]
[325410654,1714854676286,-2934.79,0.00041095,30]
[325410655,1714854676295,-2788.43,0.00041095,30]
[325410656,1714854676305,-500.0,0.00041095,30]
[325410657,1714854676314,-500.0,0.00041095,30]
[325410658,1714854676324,-500.0,0.00041095,2]
[325410659,1714854676333,-1374.89,0.00041095,30]
[325410660,1714854676343,-500.0,0.00041095,30]
[325410661,1714854676353,-1491.82,0.00041095,30]
[325410662,1714854676362,-77162.61173599,0.00041095,2]
[325410663,1714854676372,-500.0,0.00041095,30]
[325410664,1714854676381,-28980.76,0.00041095,30]
[325410665,1714854676391,-1655.28,0.00041095,30]
[325410666,1714854676400,-500.0,0.00041095,2]
[325410667,1714854676410,-500.0,0.00041095,30]
[325410668,1714854676420,-500.0,0.00041095,30]
[325410669,1714854676430,-3409.84,0.00041095,30]
[325410670,1714854676442,-728.36,0.00041095,30]
[325410671,1714854676451,-500.0,0.00041095,30]
[325410672,1714854676461,-2005.23,0.00041095,30]
[325410673,1714854676470,-500.0,0.00041095,30]
[325410674,1714854676481,-157.0,0.00041096,2]
[325410675,1714854676490,-500.0,0.00041096,2]
[325410676,1714854676500,-150.0,0.00041096,2]
[325410677,1714854676509,-543.22508628,0.00041097,30]
[325410678,1714854676520,-20079.42478839,0.000411,3]
[325410679,1714854676529,-300.0,0.000411,7]
[325410680,1714854676539,-153.54965889,0.0004113,30]
[325410681,1714854676548,-191.66075949,0.00041142,30]
[325410682,1714854676557,-1000.0,0.00041163,30]
[325410683,1714854676567,-191.66075949,0.00041195,30]
[325410684,1714854676576,-2000.0,0.00041232,29]
[325410685,1714854676586,-191.66075949,0.00041247,30]
[325410686,1714854676595,-150.0,0.00041247,30]
[325410687,1714854676604,-1000.0,0.00041256,30]
[325410688,1714854676614,-174.37436,0.00041288,30]
[325410689,1714854676624,-191.66075949,0.000413,30]
[325410690,1714854676633,-503.0,0.000413,120]
[325410691,1714854676643,-500.0,0.00041317,30]
[325410692,1714854676652,-151.76757164,0.00041317,30]
[325410693,1714854676661,-169.46313198,0.00041331,30]
[325410694,1714854676671,-1797.16795,0.0004134,30]
[325410695,1714854676680,-1000.0,0.0004135,30]
[325410696,1714854676689,-191.66075949,0.00041352,30]
[325410697,1714854676698,-500.0,0.00041369,30]
[325410698,1714854676708,-3359.87703961,0.00041369,4]
[325410699,1714854676717,-1832.72073135,0.00041369,4]
[325410700,1714854676727,-193.53309279,0.00041369,30]
[325410701,1714854676736,-501.32011767,0.00041369,31]
[325410702,1714854676746,-500.0,0.00041369,31]
[325410703,1714854676755,-500.0,0.00041369,31]
[325410704,1714854676765,-500.0,0.00041369,31]
[325410705,1714854676774,-500.0,0.00041369,31]
[325410706,1714854676784,-440.27654616,0.00041369,31]
[325410707,1714854676793,-500.0,0.00041369,31]
[325410708,1714854676803,-500.0,0.00041369,31]
[325410709,1714854676812,-500.0,0.00041369,31]
[325410710,1714854676821,-500.0,0.00041369,31]
[325410711,1714854676831,-500.0,0.00041369,31]
[325410712,1714854676840,-500.0,0.00041369,31]
[325410713,1714854676849,-500.0,0.00041369,31]
[325410714,1714854676859,-283.01660374,0.00041369,31]
[325410715,1714854676869,-500.0,0.00041369,31]
[325410716,1714854676878,-315.42828336,0.00041369,31]
[325410717,1714854676888,-254.53189131,0.00041369,31]
[325410718,1714854676897,-385.29980499,0.00041369,31]
[325410719,1714854676907,-500.0,0.00041369,31]
[325410720,1714854676916,-502.70536148,0.00041369,31]
[325410721,1714854676926,-500.0,0.00041369,31]
[325410722,1714854676936,-500.0,0.00041369,31]
[325410723,1714854676946,-500.0,0.00041369,31]
[325410724,1714854676956,-500.0,0.00041369,31]
[325410725,1714854676966,-500.0,0.00041369,31]
[325410726,1714854676975,-500.0,0.00041369,31]
[325410727,1714854676985,-500.0,0.00041369,31]
[325410728,1714854676994,-518.13932758,0.00041369,31]
[325410729,1714854677004,-500.0,0.00041369,31]
[325410730,1714854677014,-500.0,0.00041369,31]
[325410731,1714854677023,-500.0,0.00041369,31]
[325410732,1714854677033,-500.0,0.00041369,31]
[325410733,1714854677042,-500.0,0.00041369,31]
[325410734,1714854677052,-500.0,0.00041369,31]
[325410735,1714854677061,-505.53797544,0.00041369,31]
[325410736,1714854677071,-501.59764531,0.00041369,31]
[325410737,1714854677080,-500.0,0.00041369,31]
[325410738,1714854677091,-500.0,0.00041369,31]
[325410739,1714854677100,-500.0,0.00041369,31]
[325410740,1714854677110,-504.35415715,0.00041369,31]
[325410741,1714854677120,-500.0,0.00041369,31]
[325410742,1714854677129,-500.0,0.00041369,31]
[325410743,1714854677139,-500.0,0.00041369,31]
[325410744,1714854677148,-500.0,0.00041369,31]
[325410745,1714854677158,-500.0,0.00041369,31]
[325410746,1714854677168,-500.0,0.00041369,31]
[325410747,1714854677178,-500.0,0.00041369,31]
[325410748,1714854677187,-157.94179492,0.00041369,31]
[325410749,1714854677197,-500.0,0.00041369,31]
[325410750,1714854677206,-500.0,0.00041369,31]
[325410751,1714854677216,-630.14,0.00041369,31]
[325410752,1714854677226,-500.0,0.00041369,31]
[325410753,1714854677236,-500.0,0.00041369,31]
[325410754,1714854677246,-500.0,0.00041369,31]
[325410755,1714854677256,-506.01,0.00041369,31]
[325410756,1714854677266,-500.0,0.00041369,31]
[325410757,1714854677275,-1265.3,0.00041369,31]
[325410758,1714854677285,-506.61758001,0.00041369,31]
[325410759,1714854677294,-500.0,0.00041369,31]
[325410760,1714854677303,-1232.69,0.00041369,31]
[325410761,1714854677313,-510.79,0.00041369,31]
[325410762,1714854677322,-500.0,0.00041369,31]
[325410763,1714854677332,-500.0,0.00041369,31]
[325410764,1714854677341,-501.90640431,0.00041369,31]
[325410765,1714854677351,-500.0,0.00041369,31]
[325410766,1714854677360,-500.0,0.00041369,31]
[325410767,1714854677370,-500.0,0.00041369,31]
[325410768,1714854677380,-965.03,0.00041369,31]
[325410769,1714854677390,-699.29,0.00041369,31]
[325410770,1714854677399,-500.0,0.00041369,31]
[325410771,1714854677408,-1071.54,0.00041369,31]
[325410772,1714854677418,-500.0,0.00041369,31]
[325410773,1714854677430,-500.0,0.00041369,31]
[325410774,1714854677440,-500.0,0.00041369,31]
[325410775,1714854677450,-939.13,0.00041369,31]
[325410776,1714854677460,-500.0,0.00041369,31]
[325410777,1714854677470,-500.0,0.00041369,31]
[325410778,1714854677480,-500.0,0.00041369,31]
[325410779,1714854677585,-500.0,0.00041369,31]
[325410780,1714854677595,-591.71,0.00041369,31]
[325410781,1714854677604,-500.0,0.00041369,31]
[325410782,1714854677613,-500.0,0.00041369,31]
[325410783,1714854677623,-500.0,0.00041369,31]
[325410784,1714854677632,-500.0,0.00041369,31]
[325410785,1714854677642,-500.0,0.00041369,31]
[325410786,1714854677651,-1369.23,0.00041369,31]
[325410787,1714854677661,-500.0,0.00041369,31]
[325410788,1714854677670,-500.0,0.00041369,31]
[325410789,1714854677680,-500.0,0.00041369,31]
[325410790,1714854677689,-500.0,0.00041369,31]
[325410791,1714854677698,-500.0,0.00041369,31]
[325410792,1714854677708,-836.48,0.00041369,31]
[325410793,1714854677716,-500.0,0.00041369,31]
[325410794,1714854677726,-500.0,0.00041369,31]
[325410795,1714854677736,-500.0,0.00041369,31]
[325410796,1714854677745,-500.0,0.00041369,31]
[325410797,1714854677754,-1340.42,0.00041369,31]
[325410798,1714854677764,-502.91939169,0.00041369,31]
[325410799,1714854677773,-1259.68,0.00041369,31]
[325410800,1714854677782,-500.0,0.00041369,31]
[325410801,1714854677791,-500.0,0.00041369,31]
[325410802,1714854677800,-500.0,0.00041369,31]
[325410803,1714854677810,-500.0,0.00041369,31]
[325410804,1714854677819,-500.0,0.00041369,31]
[325410805,1714854677828,-500.0,0.00041369,31]
[325410806,1714854677837,-1084.76,0.00041369,31]
[325410807,1714854677846,-500.0,0.00041369,31]
[325410808,1714854677855,-673.03,0.00041369,31]
[325410809,1714854677864,-788.84,0.00041369,31]
[325410810,1714854677873,-500.0,0.00041369,31]
[325410811,1714854677883,-500.0,0.00041369,31]
[325410812,1714854677892,-627.8365504,0.00041369,31]
[325410813,1714854677901,-500.0,0.00041369,31]
[325410814,1714854677910,-1225.41,0.00041369,31]
[325410815,1714854677919,-500.0,0.00041369,31]
[325410816,1714854677929,-922.91,0.00041369,31]
[325410817,1714854677938,-1128.66,0.00041369,31]
[325410818,1714854677947,-500.0,0.00041369,31]
[325410819,1714854677956,-1000.0,0.00041369,31]
[325410820,1714854677965,-235.3062996,0.00041369,31]
[325410821,1714854677974,-1291.58,0.00041369,31]
[325410822,1714854677983,-500.0,0.00041369,31]
[325410823,1714854677992,-500.0,0.00041369,31]
[325410824,1714854678001,-958.3,0.00041369,31]
[325410825,1714854678011,-1042.42,0.00041369,31]
[325410826,1714854678020,-547.6,0.00041369,31]
[325410827,1714854678029,-240.2128006,0.00041369,31]
[325410828,1714854678039,-1580.78,0.00041369,31]
[325410829,1714854678048,-500.0,0.00041369,31]
[325410830,1714854678057,-566.24,0.00041369,31]
[325410831,1714854678067,-500.0,0.00041369,31]
[325410832,1714854678076,-1085.98,0.00041369,31]
[325410833,1714854678086,-500.0,0.00041369,31]
[325410834,1714854678095,-500.0,0.00041369,31]
[325410835,1714854678104,-500.0,0.00041369,31]
[325410836,1714854678113,-1265.69,0.00041369,31]
[325410837,1714854678123,-500.0,0.00041369,31]
[325410838,1714854678133,-500.0,0.00041369,31]
[325410839,1714854678142,-500.0,0.00041369,31]